fUST/lending_fUST_20260226
["ID","MTS","AMOUNT","RATE_DAILY","PERIOD"]
[406678173,1772069438808,-302.08162682,0.00018014,2]
[406678175,1772069438818,-547.7280467,0.00018049,20]
[406678177,1772069438827,-689.08511609,0.00018049,20]
[406678180,1772069438837,-1200.0,0.00018518,2]
[406678182,1772069438849,-547.7280467,0.00018519,24]
[406678184,1772069438860,-689.08511609,0.00018519,24]
[406678186,1772069438872,-304.68519135,0.00018557,2]
[406678188,1772069438884,-347.8634356,0.00018557,2]
[406678190,1772069438895,-300.0,0.00018619,2]
[406678192,1772069438907,-300.0,0.00018619,2]
[406678194,1772069438920,-300.0,0.00018619,2]
[406678196,1772069438936,-300.0,0.00018619,2]
[406678198,1772069438947,-244.28754087,0.0001862,25]
[406678200,1772069438958,-305.86171464,0.0001862,25]
[406678202,1772069438968,-400.9512445,0.0001862,25]
[406678204,1772069438978,-2024.76432206,0.0001868,2]
[406678209,1772069439040,-806.22147074,0.0001868,2]
[406678211,1772069439051,-290.39044265,0.00018725,2]
[406678213,1772069439063,-2579.17784983,0.00018882,2]
[406678216,1772069439074,-151.0,0.00018882,2]
[406678218,1772069439087,-151.0,0.00018882,2]
[406678220,1772069439098,-151.0,0.00018882,2]
[406678222,1772069439110,-151.0,0.00018882,2]
[406678224,1772069439126,-151.0,0.00018882,2]
[406678226,1772069439137,-155.25182626,0.00018882,2]
[406678228,1772069439148,-1080.32397022,0.000189,2]
[406678230,1772069439162,-477.21744548,0.000189,2]
[406678232,1772069439172,-190.9293306,0.00018962,2]
[406678234,1772069439183,-547.7280467,0.00018989,28]
[406678236,1772069439194,-689.08511609,0.00018989,28]
[406678238,1772069439204,-629.45987321,0.00019,2]
[406678420,1772069440950,-215.69962279,0.00019,2]
[406678422,1772069440960,-629.45987293,0.00019,2]
[406678657,1772069443411,-215.69962279,0.00019,2]
[406678659,1772069443421,-175.835327,0.00019,2]
[406678661,1772069443431,-61.46505021,0.00019339,14]
[406678664,1772069443453,-25.43507269,0.00019339,14]
[406678666,1772069443464,-75.5888771,0.00019339,14]
[406678668,1772069443473,-296.72356141,0.00019339,30]
[406678881,1772069446259,-18.59484913,0.00019339,30]
[406678884,1772069446271,-45.76838946,0.00019339,30]
[406678886,1772069446281,-2674.60743027,0.0001943,2]
[406678888,1772069446291,-547.7280467,0.00019459,31]
[406678890,1772069446300,-689.08511609,0.00019459,31]
[406678892,1772069446311,-244.28754087,0.00019593,32]
[406678894,1772069446320,-305.86171464,0.00019593,32]
[406678896,1772069446330,-400.9512445,0.00019593,32]
[406678898,1772069446340,-203.2429013,0.000196,2]
[406678900,1772069446350,-180.5434,0.0001963,30]
[406678902,1772069446359,-462.33595948,0.0001966,2]
[406678904,1772069446369,-336.85088295,0.0001966,2]
[406678906,1772069446378,-500.0,0.0001966,2]
[406678908,1772069446388,-500.0,0.0001966,2]
[406678910,1772069446397,-500.0,0.0001966,2]
[406678912,1772069446407,-500.0,0.0001966,2]
[406678914,1772069446417,-500.0,0.0001966,2]
[406678916,1772069446426,-165.0,0.0001966,2]
[406678918,1772069446436,-500.0,0.0001966,2]
[406678920,1772069446445,-500.0,0.0001966,2]
[406678922,1772069446455,-269.97310665,0.0001966,2]
[406678924,1772069446464,-2360.42,0.00019661,2]
[406678926,1772069446474,-1344.36035802,0.00019661,2]
[406678942,1772069446617,-1016.05964198,0.00019661,2]
[406678944,1772069446627,-771.95873342,0.00019662,2]
[406678946,1772069446638,-138.59922208,0.00019662,2]
[406678948,1772069446650,-661.40077792,0.00019662,2]
[406678968,1772069727740,1586.86,0.000145,2]
[406678969,1772069763692,500.60181576,0.00013273,2]
[406678970,1772069998762,169.142329,9.707e-05,2]
[406678975,1772070005802,161.33,9.5e-05,2]
[406678976,1772070006248,161.33,9.5e-05,2]
[406678977,1772070006766,161.33,9.5e-05,2]
[406678978,1772070007331,161.33,9.6e-05,2]
[406678979,1772070007805,161.33,9.6e-05,2]
[406678980,1772070008587,161.33,9.6e-05,2]
[406678981,1772070009405,161.33,9.6e-05,2]
[406678982,1772070009863,161.33,9.6e-05,2]
[406678983,1772070010349,161.33,9.7e-05,2]
[406678984,1772070010817,161.33,9.7e-05,2]
[406678985,1772070011294,161.33,9.7e-05,2]
[406678986,1772070012063,161.33,9.7e-05,2]
[406678987,1772070012628,161.33,9.7e-05,2]
[406678988,1772070013100,161.33,9.8e-05,2]
[406678989,1772070013564,161.33,9.8e-05,2]
[406678990,1772070014129,161.33,9.8e-05,2]
[406678991,1772070014707,161.33,9.8e-05,2]
[406678992,1772070015272,161.33,9.8e-05,2]
[406678993,1772070015739,161.33,9.8e-05,2]
[406678994,1772070016301,161.33,9.9e-05,2]
[406678995,1772070017041,161.33,9.9e-05,2]
[406678996,1772070017335,161.33,9.9e-05,2]
[406678997,1772070017807,161.33,9.9e-05,2]
[406678998,1772070018354,161.33,9.9e-05,2]
[406678999,1772070018971,161.33,0.0001,2]
[406679000,1772070020123,161.33,0.0001,2]
[406679001,1772070020372,161.33,0.0001,2]
[406679002,1772070020525,161.33,0.0001,2]
[406679003,1772070021064,161.33,0.0001,2]
[406679004,1772070021624,161.33,0.000101,2]
[406679005,1772070022245,161.33,0.000101,2]
[406679006,1772070022749,161.33,0.000101,2]
[406679007,1772070023396,161.33,0.000101,2]
[406679008,1772070023949,161.33,0.000101,2]
[406679009,1772070024523,161.33,0.000102,2]
[406679010,1772070024984,161.33,0.000102,2]
[406679011,1772070026227,161.33,0.000102,2]
[406679012,1772070026682,161.33,0.000102,2]
[406679013,1772070027175,161.33,0.000102,2]
[406679014,1772070027732,161.33,0.000103,2]
[406679015,1772070028296,161.33,0.000103,2]
[406679016,1772070028858,161.33,0.000103,2]
[406679017,1772070029349,161.33,0.000103,2]
[406679018,1772070030572,161.33,0.000103,2]
[406679019,1772070030860,161.33,0.000104,2]
[406679020,1772070030967,161.33,0.000104,2]
[406679021,1772070031421,161.33,0.000104,2]
[406679022,1772070032313,161.33,0.000104,2]
[406679023,1772070032708,161.33,0.000104,2]
[406679024,1772070033056,161.33,0.000104,2]
[406679026,1772070318594,1835.0,0.000145,2]
[406679027,1772070426094,-169.142329,0.00017648,2]
[406679028,1772070426115,-31.39150616,0.00017724,2]
[406679029,1772070431119,-211.87013535,0.00017724,2]
[406679030,1772070431139,-252.57,0.000178,7]
[406679031,1772070431159,-151.06323263,0.00017808,2]
[406679032,1772070431181,-569.24543987,0.00017942,2]
[406679033,1772070447084,-187.39252185,0.00017942,2]
[406679034,1772070485390,510.95560233,0.00013273,2]
[406679035,1772070568175,-196.76004981,0.00017743,2]
[406679036,1772070568195,-160.0,0.00017767,3]
[406679037,1772070568576,353.81392158,0.00017743,2]
[406679046,1772070608934,268.969988,0.00017784,2]
[406679080,1772070632395,-480.43172694,0.00017942,2]
[406679088,1772070632425,-189.59226461,0.00017942,2]
[406679091,1772070632434,-160.0,0.00018177,4]
[406679094,1772070632444,-237.0,0.00018544,2]
[406679097,1772070632453,-237.0,0.00018569,2]
[406679100,1772070632462,-160.0,0.00018586,5]
[406679102,1772070632471,-237.0,0.00018586,2]
[406679104,1772070632480,-237.0,0.00018611,2]
[406679107,1772070632489,-237.0,0.00018651,2]
[406679110,1772070632498,-2813.65271733,0.00018667,2]
[406679113,1772070632508,-538.27100008,0.00018679,2]
[406679116,1772070632517,-163.0,0.00018823,2]
[406679119,1772070632526,-300.0,0.00018823,2]
[406679121,1772070632535,-300.0,0.00018823,2]
[406679123,1772070632544,-300.0,0.00018823,2]
[406679125,1772070632553,-561.0,0.00018823,2]
[406679127,1772070632562,-151.0,0.00018824,2]
[406679129,1772070632571,-151.0,0.00018824,2]
[406679131,1772070632580,-151.0,0.00018824,2]
[406679133,1772070632590,-402.73465779,0.00018824,2]
[406679186,1772070638487,-637.37598212,0.00018824,2]
[406679187,1772070638544,-1539.06720992,0.00018824,2]
[406679188,1772070638553,-151.0,0.00018824,2]
[406679189,1772070638563,-151.0,0.00018824,2]
[406679190,1772070638572,-151.0,0.00018824,2]
[406679191,1772070638581,-151.0,0.00018824,2]
[406679192,1772070638591,-151.0,0.00018824,2]
[406679193,1772070638600,-151.0,0.00018824,2]
[406679194,1772070638610,-151.0,0.00018824,2]
[406679195,1772070638619,-500.0,0.00018976,2]
[406679196,1772070638629,-500.0,0.00018976,2]
[406679197,1772070638639,-500.0,0.00018976,2]
[406679198,1772070638649,-500.0,0.00018976,2]
[406679199,1772070638659,-500.0,0.00018976,2]
[406679200,1772070638668,-500.0,0.00018976,2]
[406679201,1772070638678,-542.21254259,0.00018976,2]
[406679202,1772070638688,-500.0,0.00018976,2]
[406679203,1772070638698,-500.0,0.00018976,2]
[406679204,1772070638708,-499.99999999,0.00018976,2]
[406679205,1772070638718,-500.0,0.00018976,2]
[406679206,1772070638727,-501.57049918,0.00018977,2]
[406679207,1772070638737,-500.0,0.00018977,2]
[406679208,1772070638747,-500.0,0.00018977,2]
[406679209,1772070638756,-500.0,0.00018977,2]
[406679210,1772070638765,-500.0,0.00018977,2]
[406679211,1772070638775,-500.0,0.00018977,2]
[406679212,1772070638784,-500.0,0.00018977,2]
[406679213,1772070638794,-500.0,0.00018977,2]
[406679214,1772070638803,-500.0,0.00018977,2]
[406679215,1772070638813,-500.0,0.00018977,2]
[406679216,1772070638822,-500.0,0.00018977,2]
[406679217,1772070638832,-167.7388362,0.00018977,2]
[406679218,1772070638842,-500.0,0.00018977,2]
[406679219,1772070638852,-500.0,0.00018977,2]
[406679220,1772070638861,-500.0,0.00018977,2]
[406679221,1772070638871,-500.0,0.00018977,2]
[406679222,1772070638881,-500.0,0.00018977,2]
[406679223,1772070638890,-296.00198036,0.00018977,2]
[406679224,1772070638900,-500.0,0.00018977,2]
[406679225,1772070638910,-500.0,0.00018977,2]
[406679226,1772070638926,-161.9490546,0.00018978,2]
[406679227,1772070638937,-250.0,0.00018979,2]
[406679228,1772070638948,-500.0,0.00018979,2]
[406679229,1772070638959,-563.13996512,0.00018979,2]
[406679230,1772070638970,-500.0,0.00018979,2]
[406679231,1772070638981,-250.0,0.00018979,2]
[406679232,1772070638993,-500.0,0.00018979,2]
[406679233,1772070639004,-250.0,0.00018979,2]
[406679234,1772070639014,-500.0,0.00018979,2]
[406679235,1772070639024,-500.0,0.00018979,2]
[406679236,1772070639035,-250.0,0.00018979,2]
[406679237,1772070639046,-500.0,0.00018979,2]
[406679238,1772070639057,-250.0,0.00018979,2]
[406679239,1772070639069,-500.0,0.00018979,2]
[406679240,1772070639079,-250.0,0.00018979,2]
[406679241,1772070639090,-250.0,0.00018979,2]
[406679242,1772070639105,-500.0,0.00018979,2]
[406679243,1772070639115,-250.0,0.00018979,2]
[406679244,1772070639125,-500.0,0.00018979,2]
[406679245,1772070639135,-500.0,0.00018979,2]
[406679246,1772070639156,-250.0,0.00018979,2]
[406679247,1772070639167,-250.0,0.00018979,2]
[406679248,1772070639179,-194.72792766,0.00018979,2]
[406679249,1772070639189,-500.0,0.00018979,2]
[406679250,1772070639200,-261.7846997,0.00018979,2]
[406679251,1772070639212,-500.0,0.00018979,2]
[406679252,1772070639223,-500.0,0.00018979,2]
[406679253,1772070639233,-250.0,0.00018979,2]
[406679254,1772070639243,-201.93286099,0.00018979,2]
[406679255,1772070639254,-250.0,0.00018979,2]
[406679256,1772070639264,-250.0,0.00018979,2]
[406679257,1772070639275,-500.0,0.00018979,2]
[406679258,1772070639285,-500.0,0.00018979,2]
[406679259,1772070639295,-500.0,0.00018979,2]
[406679260,1772070639305,-250.0,0.00018979,2]
[406679261,1772070639315,-209.40437684,0.00018979,2]
[406679262,1772070639325,-500.0,0.00018979,2]
[406679263,1772070639336,-250.0,0.00018979,2]
[406679264,1772070639348,-500.0,0.00018979,2]
[406679265,1772070639358,-500.0,0.00018979,2]
[406679266,1772070639369,-250.0,0.00018979,2]
[406679267,1772070639379,-217.15233878,0.00018979,2]
[406679268,1772070639390,-500.0,0.00018979,2]
[406679269,1772070639400,-250.0,0.00018979,2]
[406679270,1772070639411,-500.0,0.00018979,2]
[406679271,1772070639421,-500.0,0.00018979,2]
[406679272,1772070639432,-268.9471982,0.00018979,2]
[406679273,1772070639442,-500.0,0.00018979,2]
[406679274,1772070639453,-225.18697532,0.00018979,2]
[406679275,1772070639463,-250.0,0.00018979,2]
[406679276,1772070639473,-267.43041733,0.00018979,2]
[406679277,1772070639484,-500.0,0.00018979,2]
[406679278,1772070639494,-610.83302803,0.00018979,2]
[406679279,1772070639505,-233.51889341,0.00018979,2]
[406679280,1772070639516,-500.0,0.00018979,2]
[406679281,1772070639526,-250.0,0.00018979,2]
[406679282,1772070639537,-250.0,0.00018979,2]
[406679283,1772070639548,-482.54984194,0.00018979,2]
[406679284,1772070639559,-500.0,0.00018979,2]
[406679285,1772070639569,-242.15909246,0.00018979,2]
[406679286,1772070639580,-250.0,0.00018979,2]
[406679287,1772070639589,-250.0,0.00018979,2]
[406679288,1772070639601,-500.0,0.00018979,2]
[406679289,1772070639611,-251.11897888,0.00018979,2]
[406679290,1772070639621,-250.0,0.00018979,2]
[406679291,1772070639631,-250.0,0.00018979,2]
[406679292,1772070639641,-500.0,0.00018979,2]
[406679293,1772070639652,-260.4103811,0.00018979,2]
[406679294,1772070639662,-250.0,0.00018979,2]
[406679295,1772070639671,-250.0,0.00018979,2]
[406679296,1772070639681,-270.0455652,0.00018979,2]
[406679297,1772070639691,-250.0,0.00018979,2]
[406679298,1772070639700,-250.0,0.00018979,2]
[406679299,1772070639710,-280.03725112,0.00018979,2]
[406679300,1772070639721,-250.0,0.00018979,2]
[406679301,1772070639731,-250.0,0.00018979,2]
[406679302,1772070639741,-290.39862941,0.00018979,2]
[406679303,1772070639752,-250.0,0.00018979,2]
[406679304,1772070639762,-250.0,0.00018979,2]
[406679305,1772070639772,-301.1433787,0.00018979,2]
[406679306,1772070639781,-250.0,0.00018979,2]
[406679307,1772070639791,-260.29967045,0.00018979,2]
[406679308,1772070639800,-650.34817735,0.00018979,2]
[406679309,1772070639810,-250.0,0.00018979,2]
[406679310,1772070639821,-267.41381717,0.00018979,2]
[406679311,1772070639831,-195.3447218,0.00018979,2]
[406679312,1772070639841,-250.0,0.00018979,2]
[406679313,1772070639851,-250.0,0.00018979,2]
[406679314,1772070639861,-529.23761239,0.00018988,5]
[406679315,1772070639871,-551.08217043,0.00018988,2]
[406679316,1772070639881,-500.0,0.00018989,2]
[406679317,1772070639892,-191.36290183,0.00018989,2]
[406679318,1772070639902,-34276.25229027,0.0001899,2]
[406679319,1772070639918,-160.0,0.00018996,6]
[406679320,1772070639940,-500.0,0.00019,7]
[406679321,1772070639951,-516.63,0.00019,7]
[406679322,1772070639961,-237.0,0.0001904,2]
[406679323,1772070639974,-823.42932566,0.00019056,2]
[406679324,1772070639987,-237.0,0.00019058,2]
[406679325,1772070639997,-237.0,0.00019142,2]
[406679326,1772070640010,-2165.31,0.00019178,2]
[406679327,1772070640020,-1376.79830039,0.00019178,2]
[406679328,1772070640036,-788.51169961,0.00019178,2]
[406679329,1772070640046,-2165.31,0.00019178,2]
[406679330,1772070640055,-505.47887316,0.00019178,2]
[406679331,1772070640071,-1659.83112684,0.00019178,2]
[406679332,1772070640081,-2165.31,0.00019178,2]
[406679333,1772070640091,-26853.153705,0.00019338,2]
[406679334,1772070640101,-1000.0,0.00019339,2]
[406679335,1772070640111,-1000.0,0.00019339,2]
[406679336,1772070640121,-1000.0,0.00019339,2]
[406679337,1772070640130,-878.3061159,0.00019339,2]
[406679338,1772070640228,-121.6938841,0.00019339,2]
[406679339,1772070640240,-1000.0,0.00019339,2]
[406679340,1772070640251,-170.14325817,0.00019339,2]
[406679349,1772070641695,-22.28153724,0.00018979,2]
[406679350,1772070641718,-227.71846276,0.00018979,2]
[406679351,1772070641728,-36.60025792,0.00018979,2]
[406679355,1772070643604,-227.65899494,0.00018979,2]
[406679356,1772070643614,-250.0,0.00018979,2]
[406679357,1772070643624,-250.0,0.00018979,2]
[406679358,1772070643633,-250.0,0.00018979,2]
[406679359,1772070643644,-250.0,0.00018979,2]
[406679360,1772070643653,-829.85674183,0.00019339,2]
[406679361,1772070643662,-1000.0,0.00019339,2]
[406679363,1772070643671,-1000.0,0.00019339,2]
[406679364,1772070643681,-970.8047957,0.00019339,2]
[406679366,1772070643692,-29.1952043,0.00019339,2]
[406679368,1772070643702,-1000.0,0.00019339,2]
[406679369,1772070643711,-246.18669715,0.00019339,2]
[406679370,1772070643895,-753.81330285,0.00019339,2]
[406679371,1772070643904,-1000.0,0.00019339,2]
[406679372,1772070643913,-1000.0,0.00019339,2]
[406679373,1772070643925,-1000.0,0.00019339,2]
[406679374,1772070643934,-1000.0,0.00019339,2]
[406679375,1772070643943,-193.7446,0.00019339,30]
[406679376,1772070643953,-193.6947,0.00019339,30]
[406679377,1772070643963,-298.74739868,0.00019344,2]
[406679378,1772070643974,-1716.06952971,0.00019344,2]
[406679381,1772070646422,-250.0,0.00018979,2]
[406679382,1772070646431,-250.0,0.00018979,2]
[406679383,1772070646440,-250.0,0.00018979,2]
[406679384,1772070646450,-250.0,0.00018979,2]
[406679385,1772070646459,-250.0,0.00018979,2]
[406679386,1772070646468,-184.91900285,0.0001899,2]
[406679387,1772070646478,-150.49307161,0.00019344,2]
[406679388,1772070646486,-6613.96926022,0.00019345,2]
[406679389,1772070646498,-8444.99084922,0.00019345,2]
[406679390,1772070646691,-887.31446386,0.00019345,2]
[406679391,1772070646701,-1035.63576955,0.00019372,2]
[406679394,1772070775411,330.03007587,0.00013954,2]
[406679401,1772071148294,3027.49368103,0.00014,2]
[406679402,1772071148832,2413.9973116,0.00014347,4]
[406679404,1772071205586,163.06,9.5e-05,2]
[406679410,1772071262192,-613.49636943,0.00014347,4]
[406679411,1772071262220,-238.39640868,0.00014521,2]
[406679412,1772071262249,-2824.09726629,0.00014694,6]
[406679413,1772071262294,-203.39641474,0.00014694,6]
[406679414,1772071262304,-410.09995469,0.00015042,8]
[406679415,1772071262868,-238.39640868,0.00015042,8]
[406679416,1772071262918,-2378.99731766,0.00015042,8]
[406679417,1772071262927,-648.49636337,0.00015389,10]
[406679422,1772071374718,432.89567678,0.00013954,2]
[406679423,1772071537178,-764.01950095,0.00014813,2]
[406679434,1772071748129,-1666.0,0.00014373,2]
[406679435,1772071749103,-3077.62465875,0.00014373,2]
[406679436,1772071750157,-256.37534125,0.00014373,2]
[406679437,1772071750195,-5000.0,0.00014518,2]
[406679438,1772071750234,-300.0,0.00014664,2]
[406679439,1772071750261,-5000.0,0.00014665,2]
[406679440,1772071750284,-233.62848051,0.00014888,2]
[406679441,1772071750306,-2378.99731766,0.00015389,10]
[406679442,1772071750326,-300.0,0.0001542,2]
[406679443,1772071750345,-300.0,0.0001542,2]
[406679444,1772071750366,-3027.49368103,0.00015736,13]
[406679445,1772071750387,-401.0,0.00016054,2]
[406679446,1772071750409,-2635.58561605,0.00016083,15]
[406679447,1772071755092,-391.90806498,0.00016083,15]
[406679448,1772071755113,-428.09276112,0.00016427,2]
[406679449,1772071759154,-5000.0,0.00016262,2]
[406679450,1772071759176,-71.90723888,0.00016427,2]
[406679451,1772071759198,-500.0,0.00016427,2]
[406679452,1772071759220,-500.0,0.00016427,2]
[406679453,1772071759242,-560.24583807,0.00016427,2]
[406679454,1772071759463,-407.52653736,0.00016427,2]
[406679455,1772071759487,-500.0,0.00016427,2]
[406679456,1772071759508,-381.88086579,0.00016427,2]
[406679457,1772071759529,-500.0,0.00016427,2]
[406679458,1772071759550,-200.73009702,0.00016427,2]
[406679459,1772071759571,-500.0,0.00016427,2]
[406679460,1772071759591,-500.0,0.00016427,2]
[406679461,1772071759611,-3027.49368103,0.00016431,17]
[406679462,1772071759630,-180.07,0.0001652,2]
[406679463,1772071759651,-3027.49368103,0.00016778,19]
[406679464,1772071759671,-409.0,0.00016869,2]
[406679465,1772071759691,-289.0,0.00016869,2]
[406679466,1772071759710,-275.681607,0.00016888,2]
[406679467,1772071759730,-5592.58341376,0.00017,2]
[406679468,1772071759749,-1060.42802729,0.00017125,21]
[406679469,1772071779259,1226.40417905,0.00016964,2]
[406679470,1772071781136,1000.0,0.00015,2]
[406679474,1772071804748,161.85,9.5e-05,2]
[406679476,1772071805326,35.74500976,9.6e-05,2]
[406679477,1772071805374,126.10499024,9.6e-05,2]
[406679478,1772071805801,161.85,9.7e-05,2]
[406679479,1772071806278,161.85,9.8e-05,2]
[406679480,1772071806832,161.85,9.8e-05,2]
[406679481,1772071807389,161.85,9.9e-05,2]
[406679482,1772071808337,161.85,0.0001,2]
[406679483,1772071808581,161.85,0.000101,2]
[406679484,1772071809176,161.85,0.000102,2]
[406679485,1772071809645,161.85,0.000103,2]
[406679486,1772071810230,161.85,0.000104,2]
[406679487,1772071810823,161.85,0.000104,2]
[406679488,1772071811040,500.0,0.00014,2]
[406679526,1772071832462,-336.635,0.00016964,2]
[406679527,1772071832474,-384.768375,0.00016964,2]
[406679528,1772071834288,500.0,0.00014,2]
[406679532,1772071838844,-3052.19244595,0.00016964,2]
[406679533,1772071838854,-1967.06565374,0.00017125,21]
[406679534,1772071838863,-621.53278088,0.00017135,2]
[406679535,1772071838875,-4378.46721912,0.00017135,2]
[406679536,1772071838895,-281.24128817,0.00017308,2]
[406679537,1772071838906,-460.16752832,0.00017472,24]
[406679538,1772071838918,-2567.32615271,0.00017472,24]
[406679540,1772071838928,-251.30229674,0.00017718,2]
[406679541,1772071838939,-2090.3563403,0.00017817,2]
[406679542,1772071838950,-311.93178796,0.00017817,2]
[406679834,1772071843967,-840.20940277,0.00017639,2]
[406680103,1772071846757,-4159.79059723,0.00017639,2]
[406680105,1772071846766,-2597.71187174,0.00017817,2]
[406680107,1772071846775,-3027.49368103,0.00017819,26]
[406680109,1772071846785,-2207.61747234,0.00017997,2]
[406680111,1772071846794,-2133.4357268,0.00018,2]
[406680249,1772071895282,3928.29,0.00014,2]
[406680250,1772072048370,500.0,0.00013273,2]
[406680251,1772072048407,486.34575235,0.00013821,2]
[406680252,1772072049168,500.94497981,0.00013273,2]
[406680253,1772072050616,500.0,0.00013273,2]
[406680254,1772072050648,198.99350316,0.00013821,2]
[406680262,1772072165131,588.0,0.00014,2]
[406680263,1772072238812,-1000.0,0.00015795,2]
[406680264,1772072242618,-1000.0,0.00015795,2]
[406680265,1772072244855,-1000.0,0.00015637,2]
[406680266,1772072248313,-1000.0,0.00015637,2]
[406680267,1772072249267,-1000.0,0.00015637,2]
[406680268,1772072249347,-1000.0,0.00015637,2]
[406680269,1772072250166,-1000.0,0.00015637,2]
[406680270,1772072250613,-1000.0,0.00015795,2]
[406680271,1772072251331,-1000.0,0.00015795,2]
[406680272,1772072252408,-1000.0,0.00015795,2]
[406680273,1772072254209,-1000.0,0.00015637,2]
[406680274,1772072255553,-1000.0,0.00015637,2]
[406680275,1772072256626,-1000.0,0.00015637,2]
[406680276,1772072258433,-1000.0,0.00015637,2]
[406680277,1772072259786,-1000.0,0.00015637,2]
[406680278,1772072283670,621.2702547,0.00013699,2]
[406680279,1772072284591,500.0,0.00013699,2]
[406680280,1772072284650,500.11282522,0.00013699,2]
[406680281,1772072285600,500.66088723,0.00013699,2]
[406680282,1772072287032,500.0,0.00013699,2]
[406680283,1772072289208,500.6715172,0.00013699,2]
[406680284,1772072290909,500.68592186,0.00013699,2]
[406680285,1772072291065,500.0,0.00013273,2]
[406680286,1772072291109,1000.0,0.00013821,2]
[406680287,1772072295466,500.0,0.00013699,2]
[406680288,1772072347046,500.80498715,0.00013699,2]
[406680289,1772072404622,154.28,9.5e-05,2]
[406680290,1772072411913,266.96039926,0.00013273,2]
[406680291,1772072417173,501.08865684,0.00013699,2]
[406680293,1772072450966,5000.0,0.00014,2]
[406680294,1772072458384,2910.3296482,0.00014,2]
[406680295,1772072484370,-1000.0,0.00013721,2]
[406680296,1772072485548,-1000.0,0.00013721,2]
[406680297,1772072486746,-1000.0,0.00013721,2]
[406680298,1772072487926,-1000.0,0.00013721,2]
[406680299,1772072489303,-1000.0,0.00013721,2]
[406680300,1772072490865,-240.3979219,0.00013791,2]
[406680301,1772072490888,-759.6020781,0.0001386,2]
[406680302,1772072492329,-1000.0,0.0001386,2]
[406680303,1772072493835,-1000.0,0.0001386,2]
[406680304,1772072495017,-1000.0,0.0001386,2]
[406680305,1772072496253,-1000.0,0.0001386,2]
[406680306,1772072526376,501.87726162,0.00013273,2]
[406680307,1772072543646,-1000.0,0.00013721,2]
[406680308,1772072544745,-1000.0,0.00013721,2]
[406680309,1772072545697,-1000.0,0.00013721,2]
[406680310,1772072546649,-1000.0,0.00013721,2]
[406680311,1772072547848,-1000.0,0.00013721,2]
[406680312,1772072548727,-240.3979219,0.0001386,2]
[406680313,1772072548749,-759.6020781,0.00014,2]
[406680314,1772072549811,-1000.0,0.00014,2]
[406680315,1772072550837,-330.0682737,0.00014,2]
[406680316,1772072552975,669.9317263,0.00014,2]
[406680317,1772072552995,1000.0,0.00014,2]
[406680318,1772072557127,-1000.0,0.00014,2]
[406680319,1772072646242,501.70958376,0.00013273,2]
[406680320,1772072648952,500.0,0.00013273,2]
[406680321,1772072655597,197.60501738,0.00013273,2]
[406680322,1772072656855,500.0,0.00013273,2]
[406680323,1772072707469,635.39959956,0.00013273,2]
[406680324,1772072710788,599.78411493,0.00013273,2]
[406680325,1772072711550,510.22638337,0.00013273,2]
[406680326,1772072743633,5000.0,0.000135,2]
[406680327,1772072752269,5000.0,0.000135,2]
[406680328,1772072759996,5000.0,0.000135,2]
[406680329,1772072768341,5000.0,0.000135,2]
[406680331,1772072776613,1053.39803938,0.000135,2]